bitfinex/quotes_ETHUSD_20251019
["timestamp","ask_amount","ask_price","bid_price","bid_amount"]
[1760914987992,0.4483,4016.3,4016.1,3.225]
[1760914988167,0.4483,4016.3,4016.0,2.49002352]
[1760914988366,0.124,4016.4,4016.1,3.224]
[1760914988778,0.5723,4016.4,4016.1,3.224]
[1760914988985,0.4483,4016.3,4016.1,3.224]
[1760914989491,0.4483,4016.3,4016.0,2.49002352]
[1760914989688,0.124,4016.4,4016.1,3.224]
[1760914989885,0.59721792,4016.4,4016.1,3.224]
[1760914990086,0.4483,4016.3,4016.1,3.224]
[1760914990390,0.4483,4016.2,4016.1,3.224]
[1760914991690,0.4483,4016.2,4016.1,3.221]
[1760914992397,0.124,4016.4,4016.1,3.221]
[1760914992582,0.5669,4016.4,4016.1,3.221]
[1760914993782,0.4429,4016.3,4015.9,2.49010042]
[1760914993982,0.4429,4016.3,4016.1,3.22]
[1760914994602,0.124,4016.4,4016.1,3.22]
[1760914994895,0.124,4016.4,4016.2,2.48991584]
[1760914995769,0.124,4016.4,4016.3,2.48985384]
[1760914996887,0.2355,4016.9,4016.6,2.48963255]
[1760914997199,0.124,4016.7,4016.6,2.48963255]
[1760914998073,0.124,4016.7,4016.5,2.48972869]
[1760914999380,0.124,4016.7,4016.6,2.48966787]
[1760914999888,0.124,4016.7,4014.6,0.002]
[1760914999889,0.6336,4016.6,4014.6,0.002]
[1760915000088,0.2311,4015.6,4014.6,0.002]
[1760915000313,2.72138787,4015.6,4015.5,2.782]
[1760915000478,0.674,4015.6,4015.5,2.782]
[1760915000669,3.16428787,4015.6,4015.5,3.218]
[1760915000989,3.16428787,4015.6,4015.5,0.002]
[1760915001597,3.18920579,4015.6,4015.5,0.002]
[1760915002382,3.79788787,4015.6,4015.5,0.002]
[1760915002578,3.82280579,4015.6,4015.5,0.002]
[1760915002768,3.79788787,4015.6,4015.5,0.002]
[1760915002970,3.82280579,4015.6,4015.5,0.002]
[1760915004109,3.79788787,4015.6,4015.5,0.002]
[1760915006879,3.82280579,4015.6,4015.5,0.002]
[1760915008494,3.79788787,4015.6,4015.5,0.002]
[1760915008699,1.3076,4015.6,4015.5,0.002]
[1760915009018,3.79788787,4015.6,4015.5,0.002]
[1760915012107,3.216,4016.1,4015.5,0.002]
[1760915012305,0.4429,4015.6,4015.5,0.002]
[1760915012506,2.95810579,4015.6,4015.5,0.002]
[1760915012706,3.56678787,4015.6,4015.5,0.002]
[1760915012888,0.001,4016.3,4015.5,0.002]
[1760915013422,2.49085464,4016.3,4015.5,0.002]
[1760915013626,0.02491792,4016.2,4015.5,0.002]
[1760915013927,0.02491792,4016.2,4015.6,2.49028701]
[1760915014166,0.02491792,4016.2,4015.5,0.002]
[1760915014422,2.48996274,4016.2,4015.5,0.002]
[1760915014929,0.001,4016.3,4015.9,2.49009204]
[1760915015295,0.001,4016.3,4015.7,0.02490225]
[1760915015494,0.001,4016.3,4015.5,3.213]
[1760915015495,0.001,4016.3,4015.5,0.002]
[1760915015716,0.001,4016.3,4015.6,2.513]
[1760915015717,0.02591792,4016.3,4015.6,2.513]
[1760915015892,0.001,4016.3,4015.9,2.49008868]
[1760915016089,0.001,4016.3,4015.5,5.70233812]
[1760915016326,0.001,4016.3,4015.5,2.49233812]
[1760915016524,0.001,4016.3,4015.5,0.002]
[1760915016525,3.12357225,4016.2,4015.5,0.002]
[1760915016701,0.001,4016.3,4015.7,2.49020781]
[1760915016907,0.001,4016.3,4015.5,0.002]
[1760915017227,0.001,4016.3,4016.1,2.48992938]
[1760915017427,0.001,4016.3,4016.2,2.48991584]
[1760915019340,0.001,4016.3,4016.0,5.70002929]
[1760915019341,0.001,4016.3,4016.0,3.21]
[1760915019645,0.001,4016.3,4016.2,2.48991584]
[1760915019848,0.001,4016.3,4016.2,5.69991584]
[1760915020829,0.001,4016.3,4016.2,2.48991584]
[1760915021224,0.001,4016.3,4016.2,5.69791584]
[1760915021557,0.001,4016.3,4016.2,3.208]
[1760915022355,0.001,4016.3,4016.2,5.69791584]
[1760915022757,0.001,4016.3,4016.2,2.48991584]
[1760915023054,0.001,4016.3,4016.2,5.69691584]
[1760915023853,0.001,4016.3,4016.2,3.207]
[1760915024463,0.001,4016.3,4016.2,2.48991584]
[1760915024663,0.001,4016.3,4016.1,2.48996414]
[1760915024962,0.001,4016.3,4015.9,2.49010184]
[1760915025157,0.001,4016.3,4016.1,5.69592002]
[1760915025476,0.001,4016.3,4016.2,2.48991584]
[1760915027564,0.001,4016.3,4016.2,5.69591584]
[1760915027920,0.001,4016.3,4016.2,5.69391584]
[1760915028130,0.001,4016.3,4016.2,2.48991584]
[1760915028676,0.001,4016.3,4016.2,5.69391584]
[1760915030962,0.001,4016.3,4016.2,9.51391584]
[1760915031167,0.001,4016.3,4016.2,11.36591584]
[1760915033962,0.001,4016.3,4016.2,8.16191584]
[1760915034173,0.001,4016.3,4016.2,11.36491584]
[1760915038389,0.001,4016.3,4016.2,8.16191584]
[1760915038686,0.4418,4016.3,4016.2,6.30991584]
[1760915038887,0.4418,4016.3,4016.2,9.51291584]
[1760915039968,0.4418,4016.3,4016.2,6.30991584]
[1760915040182,0.4418,4016.3,4016.2,9.51291584]
[1760915041691,0.4418,4016.3,4016.2,6.30991584]
[1760915041890,0.4418,4016.3,4016.2,9.51291584]
[1760915042276,0.4418,4016.3,4016.2,2.48991584]
[1760915042490,0.5658,4016.3,4015.8,3.82]
[1760915042696,0.4408,4016.2,4016.1,2.48997783]
[1760915042896,0.4408,4016.2,4015.6,0.124]
[1760915043062,0.4408,4016.2,4015.7,2.49017718]
[1760915043256,0.46571792,4016.1,4015.7,2.49017718]
[1760915043495,0.4408,4016.0,4015.7,2.49021952]
[1760915043660,0.02491792,4015.9,4015.7,5.69321952]
[1760915043993,0.02591792,4016.3,4015.8,2.49012878]
[1760915044392,0.4408,4016.2,4015.7,3.203]
[1760915044595,0.4408,4016.1,4015.7,5.69320823]
[1760915044779,0.4408,4016.0,4015.9,2.49004713]
[1760915044981,0.4408,4016.0,4015.7,3.203]
[1760915045189,0.4448,4015.9,4015.8,2.4901538]
[1760915046374,0.4458,4016.3,4015.7,3.203]
[1760915046559,0.4448,4016.2,4015.7,3.203]
[1760915046758,0.4448,4016.1,4015.7,3.203]
[1760915047096,0.4448,4016.0,4015.8,2.49016385]
[1760915047795,0.4448,4016.0,4015.9,2.49010184]
[1760915050692,0.4448,4016.0,4015.5,0.002]
[1760915050893,0.4448,4016.0,4015.6,5.69328783]
[1760915051199,0.46971792,4015.9,4015.7,2.49020209]
[1760915051397,0.46971792,4015.9,4015.5,2.49234656]
[1760915051398,0.02491792,4015.9,4015.8,2.49016385]
[1760915051564,0.02591792,4016.3,4015.8,2.49016385]
[1760915052011,4.50677548,4016.1,4015.5,0.002]
[1760915052212,3.12388787,4015.6,4015.5,0.002]
[1760915052376,0.49671792,4015.6,4015.0,0.002]
[1760915052705,2.49050181,4015.3,4015.0,0.002]
[1760915052880,0.02491792,4015.2,4015.0,0.002]
[1760915053079,0.4718,4015.2,4015.0,0.002]
[1760915054467,0.4718,4015.1,4015.0,0.002]
[1760915054696,3.203,4015.6,4015.0,0.002]
[1760915054892,3.6748,4015.6,4015.0,0.002]
[1760915055291,3.6748,4015.6,4015.1,2.49059799]
[1760915055575,0.4718,4015.5,4015.1,2.49059799]
[1760915055887,0.4718,4015.4,4015.1,2.49059799]
[1760915056974,0.4718,4015.4,4015.2,2.4905241]
[1760915058302,0.124,4015.2,4015.1,2.49057697]
[1760915058488,0.5958,4015.2,4015.1,2.49057697]
[1760915058685,0.5958,4015.2,4015.0,2.49265528]
[1760915059089,0.124,4015.2,4015.1,2.49059799]
[1760915059821,5.19102192,4016.4,4015.1,2.49059799]
[1760915059822,0.04438785,4016.8,4016.2,2.48991584]
[1760915060040,0.001,4016.8,4016.2,6.36309132]
[1760915060400,0.02591792,4016.8,4015.2,3.87317548]
[1760915060597,0.02591792,4016.8,4015.0,0.002]
[1760915060598,0.4718,4016.2,4015.0,0.002]
[1760915060798,4.08947548,4016.1,4015.0,0.002]
[1760915061026,3.204,4016.0,4015.0,7.07917548]
[1760915061188,3.204,4016.0,4015.6,2.49023999]
[1760915061385,3.204,4016.0,4015.7,2.4902156]
[1760915061594,0.2163,4016.1,4015.3,3.87317548]
[1760915061902,0.2163,4016.1,4015.0,3.206]
[1760915061903,3.203,4016.5,4015.9,2.49010015]
[1760915062105,3.203,4016.5,4016.1,2.48992262]
[1760915062308,3.6748,4016.5,4016.1,2.48992262]
[1760915062628,3.203,4016.5,4015.9,2.49010015]
[1760915062828,3.203,4016.5,4015.7,3.203]
[1760915063002,0.6346,4016.8,4015.7,3.203]
[1760915063233,1.1064,4016.8,4016.1,2.48993695]
[1760915063632,0.6346,4016.8,4016.1,2.48993695]
[1760915063828,0.4718,4016.5,4016.1,2.48993695]
[1760915064433,0.4718,4016.5,4016.2,2.48991584]
[1760915064821,0.4718,4016.5,4016.1,2.48997129]
[1760915065159,1.728,4016.7,4015.9,2.49004119]
[1760915065354,0.4728,4016.3,4016.0,2.49002094]
[1760915065733,0.4728,4016.3,4016.1,2.48994148]
[1760915065918,0.001,4016.3,4016.1,2.48994148]
[1760915066452,0.001,4016.3,4016.2,2.48991584]
[1760915066655,0.001,4016.3,4016.0,2.49003984]
[1760915066958,0.001,4016.3,4016.1,2.48997595]
[1760915067654,0.001,4016.3,4016.1,2.48992763]
[1760915067821,0.001,4016.3,4015.9,2.49009473]
[1760915068022,0.001,4016.3,4016.1,2.48991939]
[1760915068631,0.001,4016.3,4016.2,2.48991584]
[1760915069153,0.001,4016.3,4016.1,2.48996325]
[1760915069666,0.4728,4016.3,4016.1,2.48996325]
[1760915069823,0.125,4016.3,4016.2,2.48991584]
[1760915070966,0.125,4016.3,4016.1,5.69291876]
[1760915072669,0.5968,4016.3,4016.1,5.69291876]
[1760915072972,0.125,4016.3,4016.2,2.48991584]
[1760915074631,0.125,4016.3,4016.1,3.203]
[1760915074968,0.125,4016.3,4016.2,2.48991584]
[1760915083370,0.001,4016.3,4016.2,2.48991584]
[1760915083683,0.001,4016.3,4015.4,2.4903823]
[1760915083684,0.4366,4016.3,4015.6,2.49022723]
[1760915083887,0.4366,4016.3,4015.1,0.002]
[1760915083888,0.46051792,4016.2,4015.7,3.202]
[1760915084072,0.4356,4016.1,4015.7,5.69222438]
[1760915084272,0.001,4016.3,4016.0,2.49003984]
[1760915084579,0.4366,4016.3,4016.0,2.49003984]
[1760915084775,0.001,4016.3,4015.9,2.4900479]
[1760915084981,0.4356,4016.2,4016.0,2.49003111]
[1760915085365,0.001,4016.3,4016.0,2.49003151]
[1760915085599,0.001,4016.3,4015.8,3.202]
[1760915085891,0.4356,4016.2,4015.8,5.6921601]
[1760915086194,0.4356,4016.1,4015.9,2.49009378]
[1760915086359,0.46051792,4016.0,4015.3,2.49042684]
[1760915086690,0.6602,4015.9,4015.4,2.49039411]
[1760915087059,0.4356,4015.8,4015.2,3.202]
[1760915087262,0.2246,4015.9,4015.7,2.49022586]
[1760915087678,0.6602,4015.9,4015.7,2.49022586]
[1760915087879,0.6602,4015.9,4015.6,2.49028429]
[1760915088703,0.2246,4015.9,4015.6,2.49028429]
[1760915088855,0.4356,4015.8,4015.6,2.49028429]
[1760915091078,0.2246,4015.9,4015.5,0.002]
[1760915091593,0.001,4016.3,4015.6,3.202]
[1760915091890,0.001,4016.3,4016.2,6.36309132]
[1760915092092,0.001,4016.3,4016.2,9.56509132]
[1760915092258,0.001,4016.3,4016.2,5.69191584]
[1760915092458,0.001,4016.3,4016.2,2.48991584]
[1760915092667,0.001,4016.3,4016.2,5.69191584]
[1760915093903,0.001,4016.3,4016.2,5.81591584]
[1760915095282,0.001,4016.3,4016.2,7.54391584]
[1760915097711,0.001,4016.3,4016.2,4.34191584]
[1760915097879,0.001,4016.3,4016.2,7.41891584]
[1760915098590,0.001,4016.3,4016.2,12.06640508]
[1760915100575,0.001,4016.3,4016.2,4.21791584]
[1760915100790,0.001,4016.3,4016.2,7.41891584]
[1760915100992,0.001,4016.3,4016.2,5.69091584]
[1760915101218,0.001,4016.3,4016.2,2.48991584]
[1760915101422,0.4366,4016.3,4016.2,2.48991584]
[1760915101793,0.001,4016.3,4016.2,5.69091584]
[1760915102212,0.4366,4016.3,4016.2,5.69091584]
[1760915103605,0.001,4016.3,4016.2,5.69091584]
[1760915105338,0.001,4016.3,4016.2,12.06640508]
[1760915107809,0.001,4016.3,4016.2,12.19040508]
[1760915109622,0.001,4016.3,4016.2,16.01040508]
[1760915114458,0.001,4016.3,4016.2,12.80940508]
[1760915114641,0.001,4016.3,4016.2,16.00940508]
[1760915118479,0.001,4016.3,4016.2,15.88540508]
[1760915118675,0.4376,4016.3,4016.2,8.03791584]
[1760915118968,0.4376,4016.3,4016.2,2.48991584]
[1760915119264,0.4376,4016.3,4016.2,5.68891584]
[1760915121450,0.4376,4016.3,4016.2,2.48991584]
[1760915121650,0.4376,4016.3,4016.2,5.68891584]
[1760915122672,0.4376,4016.3,4015.6,1.728]
[1760915122870,0.2367,4015.7,4015.4,2.49036318]
[1760915123074,0.2367,4015.7,4015.5,3.201]
[1760915123250,0.4366,4015.6,4015.5,3.201]
[1760915123789,0.4366,4015.6,4015.5,5.69133904]
[1760915124086,0.4366,4015.6,4015.5,0.002]
[1760915124452,2.92688787,4015.6,4015.5,0.002]
[1760915124656,2.95180579,4015.6,4015.5,0.002]
[1760915124975,0.4366,4015.6,4015.5,0.002]
[1760915128654,2.49053596,4015.2,4015.1,0.002]
[1760915128875,2.49053596,4015.2,4015.0,0.002]
[1760915129182,0.4366,4015.1,4015.0,0.002]
[1760915132181,2.92719799,4015.1,4015.0,0.002]
[1760915132565,0.4366,4015.1,4015.0,0.002]
[1760915132773,3.56079799,4015.1,4015.0,0.002]
[1760915133659,3.58571591,4015.1,4015.0,0.002]
[1760915134097,5.28879799,4015.1,4015.0,0.002]
[1760915134886,6.03785137,4015.1,4015.0,0.002]
[1760915137777,9.23785137,4015.1,4015.0,0.002]
[1760915140082,9.23885137,4015.1,4015.0,0.002]
[1760915140278,6.03885137,4015.1,4015.0,0.002]
[1760915140484,9.23885137,4015.1,4015.0,0.002]
[1760915141265,9.31245137,4015.1,4015.0,0.002]
[1760915143195,8.56339799,4015.1,4015.0,0.002]
[1760915143378,8.66326329,4015.1,4015.0,0.002]
[1760915143579,5.46326329,4015.1,4015.0,0.002]
[1760915143781,8.66326329,4015.1,4015.0,0.002]
[1760915146396,13.84305773,4015.1,4015.0,0.002]
[1760915151029,14.51281756,4015.1,4015.0,0.002]
[1760915151192,13.84305773,4015.1,4015.0,0.002]
[1760915151386,14.51050837,4015.1,4015.0,0.002]
[1760915152327,13.84305773,4015.1,4015.0,0.002]
[1760915153335,14.73503791,4015.1,4015.0,0.002]
[1760915154332,13.84305773,4015.1,4015.0,0.002]
[1760915154692,13.07412549,4015.1,4015.0,0.002]
[1760915155423,9.19556849,4015.1,4015.0,0.002]
[1760915158324,10.53295641,4015.1,4015.0,0.002]
[1760915159437,6.89635641,4015.1,4015.0,0.002]
[1760915159639,0.6069052,4015.1,4015.0,0.002]
[1760915159809,3.8059052,4015.1,4015.0,0.002]
[1760915160015,5.5339052,4015.1,4015.0,0.002]
[1760915160216,8.69385878,4015.1,4015.0,0.002]
[1760915160746,6.20326079,4015.1,4015.0,0.002]
[1760915162152,8.69385878,4015.1,4015.0,0.002]
[1760915162356,8.02450319,4015.1,4015.0,0.002]
[1760915162819,5.5339052,4015.1,4015.0,0.002]
[1760915163018,8.02450319,4015.1,4015.0,0.002]
[1760915165459,6.20377633,4015.1,4015.0,0.002]
[1760915165818,1.27677633,4015.1,4015.0,0.002]
[1760915166052,3.8049052,4015.1,4015.0,0.002]
[1760915169346,3.2726,4015.1,4015.0,0.002]
[1760915171962,9.08817882,4015.1,4015.0,0.002]
[1760915172161,9.75804995,4015.1,4015.0,0.002]
[1760915172366,9.1880506,4015.1,4015.0,0.002]
[1760915172663,9.85696652,4015.1,4015.0,0.002]
[1760915172866,6.23076652,4015.1,4015.0,0.002]
[1760915173049,5.46197882,4015.1,4015.0,0.002]
[1760915173251,8.65897882,4015.1,4015.0,0.002]
[1760915173776,2.97138083,4015.1,4015.0,0.002]
[1760915173979,6.16838083,4015.1,4015.0,0.002]
[1760915174540,8.65897882,4015.1,4015.0,0.002]
[1760915175147,5.46197882,4015.1,4015.0,0.002]
[1760915175446,8.65897882,4015.1,4015.0,0.002]
[1760915175642,5.46197882,4015.1,4015.0,0.002]
[1760915175879,8.65897882,4015.1,4015.0,0.002]
[1760915176665,0.60978083,4015.1,4015.0,0.002]
[1760915176866,3.2716,4015.1,4015.0,0.002]
[1760915177054,3.80678083,4015.1,4015.0,0.002]
[1760915177260,3.2716,4015.1,4015.0,0.002]
[1760915177982,3.29651792,4015.1,4015.0,0.002]
[1760915178278,3.2716,4015.1,4015.0,0.002]
[1760915181566,0.5207,4015.1,4015.0,0.002]
[1760915181767,3.7177,4015.1,4015.0,0.002]
[1760915181969,3.2716,4015.1,4015.0,0.002]
[1760915183085,0.0746,4015.1,4015.0,0.002]
[1760915183303,3.2706,4015.1,4015.0,0.002]
[1760915183714,4.91074343,4015.1,4015.0,0.002]
[1760915183884,4.88582551,4015.1,4015.0,0.002]
[1760915184084,6.9303235,4015.1,4015.0,0.002]
[1760915184295,7.3764235,4015.1,4015.0,0.002]
[1760915184786,11.2549805,4015.1,4015.0,0.002]
[1760915189530,11.92389642,4015.1,4015.0,0.002]
[1760915192119,11.2549805,4015.1,4015.0,0.002]
[1760915192532,11.92389642,4015.1,4015.0,0.002]
[1760915192934,9.1044235,4015.1,4015.0,0.002]
[1760915193136,9.9967717,4015.1,4015.0,0.002]
[1760915193503,10.14005282,4015.1,4015.0,0.002]
[1760915193818,9.20430077,4015.1,4015.0,0.002]
[1760915195223,6.00830077,4015.1,4015.0,0.002]
[1760915195422,12.63575777,4015.1,4015.0,0.002]
[1760915195633,4.92860077,4015.1,4015.0,0.002]
[1760915195835,2.43800278,4015.1,4015.0,0.002]
[1760915196133,4.43872551,4015.1,4015.0,0.002]
[1760915196338,5.53312551,4015.1,4015.0,0.002]
[1760915198035,6.16672551,4015.1,4015.0,0.002]
[1760915200139,2.97172551,4015.1,4015.0,0.002]
[1760915200340,6.16672551,4015.1,4015.0,0.002]
[1760915203048,8.6573235,4015.1,4015.0,0.002]
[1760915203345,3.2686,4015.1,4015.0,0.002]
[1760915203518,3.80460421,4015.1,4015.0,0.002]
[1760915205453,3.80460421,4015.1,4014.7,2.41924419]
[1760915205454,0.124,4015.0,4014.7,2.41924419]
[1760915206237,0.14891792,4015.0,4014.7,2.41924419]
[1760915208036,0.14891792,4015.0,4014.6,0.002]
[1760915208230,0.124,4014.7,4014.6,0.002]
[1760915208645,0.124,4014.7,4014.6,2.49290818]
[1760915209046,3.08626406,4014.7,4014.6,0.002]
[1760915209234,3.71986406,4014.7,4014.6,0.002]
[1760915209435,4.23071986,4014.7,4014.6,0.002]
[1760915210628,3.78421986,4014.7,4014.6,0.002]
[1760915210824,1.29337372,4014.7,4014.6,0.002]
[1760915211270,0.65977372,4014.7,4014.6,0.002]
[1760915211427,1.29337372,4014.7,4014.6,0.002]
[1760915212454,0.65977372,4014.7,4014.6,0.002]
[1760915212753,1.29337372,4014.7,4014.6,0.002]
[1760915215568,1.73987372,4014.7,4014.6,0.002]
[1760915215968,0.65977372,4014.7,4014.6,0.002]
[1760915216132,0.53577372,4014.7,4014.6,0.002]
[1760915216471,3.193,4014.7,4014.6,0.002]
[1760915216634,3.72877372,4014.7,4014.6,0.002]
[1760915217236,0.124,4014.8,4014.6,0.002]
[1760915218768,0.02491792,4014.7,4014.6,0.002]
[1760915219971,0.47141792,4014.7,4014.6,0.002]
[1760915220267,0.02491792,4014.7,4014.6,0.002]
[1760915220572,2.93734614,4014.7,4014.6,0.002]
[1760915220758,3.4985828,4014.7,4014.6,0.002]
[1760915220951,1.00773666,4014.7,4014.6,0.002]
[1760915221159,0.4465,4014.7,4014.6,0.002]
[1760915221379,0.47141792,4014.7,4014.6,0.002]
[1760915222247,0.98283601,4014.7,4014.6,0.002]
[1760915222453,2.96226406,4014.7,4014.6,0.002]
[1760915222652,3.49860007,4014.7,4014.6,0.002]
[1760915222852,0.98283601,4014.7,4014.6,0.002]
[1760915223053,0.4465,4014.7,4014.6,0.002]
[1760915223253,0.53633601,4014.7,4014.6,0.002]
[1760915224374,0.98283601,4014.7,4014.6,0.002]
[1760915224875,0.53633601,4014.7,4014.6,0.002]
[1760915225088,0.48633601,4014.7,4014.6,0.002]
[1760915225304,0.95873601,4014.7,4014.6,0.002]
[1760915225592,3.44958215,4014.7,4014.6,0.002]
[1760915225956,0.95873601,4014.7,4014.6,0.002]
[1760915226369,4.10810007,4014.7,4014.6,0.002]
[1760915226775,4.08318215,4014.7,4014.6,0.002]
[1760915226978,4.08418215,4014.7,4014.6,0.002]
[1760915227294,3.61178215,4014.7,4014.6,0.002]
[1760915227681,4.08418215,4014.7,4014.6,0.002]
[1760915227879,4.18405618,4014.7,4014.6,0.002]
[1760915228288,0.58721004,4014.7,4014.6,0.002]
[1760915228489,3.67833601,4014.7,4014.6,0.002]
[1760915228890,4.15073601,4014.7,4014.6,0.002]
[1760915229079,6.64158215,4014.7,4014.6,0.002]
[1760915229773,4.15073601,4014.7,4014.6,0.002]
[1760915230899,6.64158215,4014.7,4014.6,0.002]
[1760915231199,4.15073601,4014.7,4014.6,0.002]
[1760915233109,6.64158215,4014.7,4014.6,0.002]
[1760915234520,4.15073601,4014.7,4014.6,0.002]
[1760915234722,3.67833601,4014.7,4014.6,0.002]
[1760915236004,4.12373601,4014.7,4014.6,0.002]
[1760915236511,3.67833601,4014.7,4014.6,0.002]
[1760915238504,4.12373601,4014.7,4014.6,0.002]
[1760915239475,6.61458215,4014.7,4014.6,0.002]
[1760915240298,6.61458215,4014.7,4014.0,2.49122044]
[1760915240299,4.12373601,4014.7,4013.3,3.82]
[1760915240502,3.42269824,4014.6,4013.4,3.82]
[1760915240809,0.48633601,4014.5,4013.9,2.49129287]
[1760915241021,3.67633601,4014.4,4013.9,2.49129287]
[1760915241181,3.19,4014.4,4013.9,2.49129287]
[1760915242700,3.6354,4014.4,4013.9,2.49129287]
[1760915242903,3.19,4014.4,4013.7,2.49145852]
[1760915243214,3.19,4014.4,4014.1,2.49121258]
[1760915243416,3.19,4014.4,4014.0,2.49126647]
[1760915244076,3.19,4014.4,4014.1,2.49121484]
[1760915244285,3.19,4014.4,4014.0,2.49127442]
[1760915244491,3.19,4014.4,4013.8,2.49137823]
[1760915244981,3.19,4014.4,4014.0,2.49125665]
[1760915245987,3.19,4014.4,4014.0,2.49325665]
[1760915247223,3.19,4014.4,4014.0,0.002]
[1760915247512,3.19,4014.4,4014.1,2.49118872]
[1760915248090,3.19,4014.4,4014.0,2.49327319]
[1760915248301,0.53784841,4014.3,4014.1,2.49121174]
[1760915248503,3.19,4014.4,4014.1,2.49121174]
[1760915248713,0.53784806,4014.3,4014.2,2.49115639]
[1760915248917,3.72684806,4014.6,4014.2,2.49115639]
[1760915249115,3.189,4014.6,4014.5,2.49097023]
[1760915249302,3.72685088,4014.6,4014.1,2.49120054]
[1760915249617,0.53785088,4014.5,4014.3,2.49104342]
[1760915249813,0.53785088,4014.4,4014.3,2.49104342]
[1760915250119,0.98325088,4014.4,4014.0,0.002]
[1760915250327,0.124,4014.1,4014.0,0.002]
[1760915250684,0.124,4014.1,4014.0,2.49328051]
[1760915251017,0.124,4014.1,4014.0,0.002]
[1760915254120,0.5694,4014.1,4014.0,0.002]
[1760915255502,0.124,4014.1,4014.0,0.002]
[1760915256404,0.5797,4014.1,4014.0,0.002]
[1760915257122,1.11741318,4014.1,4014.0,0.002]
[1760915259241,0.66171318,4014.1,4014.0,0.002]
[1760915259916,1.11741318,4014.1,4014.0,0.002]
[1760915262921,1.11841318,4014.1,4014.0,0.002]
[1760915263870,1.1179463,4014.1,4014.0,0.002]
[1760915264864,3.60916475,4014.1,4014.0,0.002]
[1760915265064,3.63408267,4014.1,4014.0,0.002]
[1760915269251,3.60916475,4014.1,4014.0,0.002]
[1760915269455,4.24276475,4014.1,4014.0,0.002]
[1760915272433,4.26768267,4014.1,4014.0,0.002]
[1760915273027,4.24276475,4014.1,4014.0,0.002]
[1760915275071,4.26768267,4014.1,4014.0,0.002]
[1760915275275,8.92055236,4014.1,4014.0,0.002]
[1760915275573,9.64481502,4014.1,4014.0,0.002]
[1760915275749,10.31637289,4014.1,4014.0,0.002]
[1760915276261,9.64481502,4014.1,4014.0,0.002]
[1760915276666,10.5377142,4014.1,4014.0,0.002]
[1760915276862,9.76499841,4014.1,4014.0,0.002]
[1760915277476,11.49299841,4014.1,4014.0,0.002]
[1760915277977,14.35625313,4014.1,4014.0,0.002]
[1760915278172,14.35625313,4014.1,4013.5,0.002]
[1760915278173,7.0052827,4013.6,4013.5,0.002]
[1760915278477,12.456529,4013.6,4013.5,0.002]
[1760915278673,12.912229,4013.6,4013.5,0.002]
[1760915278881,13.66162854,4013.6,4013.5,0.002]
[1760915279558,15.04547145,4013.6,4013.5,0.002]
[1760915280076,13.70505083,4013.6,4013.5,0.002]
[1760915280872,14.59804858,4013.6,4013.5,0.002]
[1760915282057,13.70505083,4013.6,4013.5,0.002]
[1760915282660,14.59752958,4013.6,4013.5,0.002]
[1760915284475,14.59545955,4013.6,4013.5,0.002]
[1760915286250,13.7029808,4013.6,4013.5,0.002]
[1760915286791,15.04340142,4013.6,4013.5,0.002]
[1760915286953,3.12537713,4013.2,4013.1,0.002]
[1760915287151,16.35977912,4013.2,4013.1,0.002]
[1760915287350,16.35977912,4013.2,4009.8,2.49385925]
[1760915287351,1.728,4013.1,4010.0,0.74953435]
[1760915287655,11.93128407,4013.2,4010.4,2.49346244]
[1760915287656,3.8801539,4011.4,4010.4,2.49346244]
[1760915287861,3.8801539,4011.4,4010.3,2.49351772]
[1760915287862,0.124,4010.4,4010.3,2.49351772]
[1760915288291,0.124,4010.4,4009.7,1.852]
[1760915288661,0.124,4010.4,4010.1,2.4936426]
[1760915288861,0.124,4010.4,4010.2,2.49359916]
[1760915289061,5.6791468,4011.0,4010.0,2.4937386]
[1760915289062,3.186,4010.7,4010.0,2.4937386]
[1760915289270,3.186,4010.7,4009.2,5.68025842]
[1760915289271,3.186,4010.7,4010.1,2.49364857]
[1760915289476,3.186,4010.7,4009.3,3.8801539]
[1760915289684,3.186,4010.7,4010.0,2.49370378]
[1760915290289,3.186,4010.7,4009.9,2.49377124]
[1760915290606,3.186,4010.7,4009.1,0.74974789]
[1760915290901,3.186,4010.7,4010.1,2.49366956]
[1760915291096,3.186,4010.7,4009.4,2.49413877]
[1760915291392,3.186,4010.7,4009.3,4.22214652]
[1760915291596,3.186,4010.7,4009.5,2.49407656]
[1760915291901,3.186,4010.7,4010.3,2.4935623]
[1760915292302,3.186,4010.7,4010.1,2.49364375]
[1760915292499,3.186,4010.7,4010.0,2.49376]
[1760915292696,3.186,4010.7,4010.1,2.49368696]
[1760915293297,3.186,4010.7,4009.5,3.8801539]
[1760915293474,3.186,4010.7,4010.1,2.4936799]
[1760915293667,3.186,4010.7,4009.5,3.8801539]
[1760915293668,3.186,4010.7,4010.2,2.49363633]
[1760915293871,6.37287573,4011.7,4009.9,2.49382777]
[1760915294087,1.728,4011.3,4010.6,2.49336977]
[1760915294322,1.728,4011.3,4010.4,2.49347934]
[1760915295402,1.728,4011.3,4010.5,2.49344843]
[1760915295821,4.22096673,4011.3,4010.5,2.49344843]
[1760915297814,2.49302011,4011.2,4010.5,2.49344843]
[1760915298198,2.49302011,4011.2,4010.5,2.49544843]
[1760915298514,2.49302011,4011.2,4010.5,0.002]
[1760915299016,0.124,4010.7,4010.5,0.002]
[1760915299794,0.124,4010.7,4010.5,2.49540801]